fUSD/lending_fUSD_20260426
["ID","MTS","AMOUNT","RATE_DAILY","PERIOD"]
[421180827,1777217441183,-758.750526,0.00019616,2]
[421180829,1777217441193,-282.63290804,0.00019616,4]
[421180831,1777217441203,-500.0,0.00019617,2]
[421180833,1777217441214,-150.0,0.00019617,2]
[421180835,1777217441224,-500.0,0.00019617,2]
[421180837,1777217441235,-500.0,0.00019617,2]
[421180839,1777217441246,-500.0,0.00019617,2]
[421180841,1777217441256,-500.0,0.00019617,2]
[421180844,1777217441267,-500.0,0.00019617,2]
[421180846,1777217441277,-501.14589046,0.00019617,2]
[421180848,1777217441287,-500.0,0.00019617,2]
[421180850,1777217441298,-500.0,0.00019617,2]
[421180851,1777217441308,-500.0,0.00019617,2]
[421180853,1777217441319,-500.0,0.00019617,2]
[421180855,1777217441330,-500.0,0.00019617,2]
[421180856,1777217441341,-255.03071354,0.00019617,2]
[421180858,1777217441351,-500.0,0.00019617,2]
[421180859,1777217441362,-500.0,0.00019617,2]
[421180860,1777217441372,-500.0,0.00019617,2]
[421180861,1777217441382,-500.0,0.00019617,2]
[421180862,1777217441393,-500.0,0.00019617,2]
[421180863,1777217441404,-500.96391509,0.00019617,2]
[421180864,1777217441414,-500.0,0.00019617,2]
[421180865,1777217441424,-500.0,0.00019617,2]
[421180866,1777217441434,-500.0,0.00019617,2]
[421180867,1777217441446,-500.0,0.00019617,2]
[421180868,1777217441457,-500.0,0.00019617,2]
[421180869,1777217441467,-500.0,0.00019617,2]
[421180870,1777217441477,-500.0,0.00019617,2]
[421180871,1777217441488,-250.0,0.00019617,2]
[421180872,1777217441499,-3574.75874957,0.00019618,2]
[421180886,1777217443577,-1685.9126733,0.00019618,2]
[421180887,1777217443590,-4976.42433161,0.00019618,2]
[421180888,1777217443602,-53690.4102661,0.00019618,2]
[421180889,1777217443632,-5274.65330025,0.00019618,2]
[421180891,1777217446409,-151.0,0.00019528,2]
[421180892,1777217446420,-151.0,0.00019616,2]
[421180893,1777217446430,-1196.2,0.00019618,2]
[421180894,1777217446464,-335.8356,0.00019618,2]
[421180895,1777217446476,-781.20791216,0.00019618,2]
[421180896,1777217446522,-2627.95729974,0.00019618,2]
[421180905,1777217515885,339.87,0.00032192,120]
[421180907,1777217575160,208.0,9.989e-05,2]
[421180908,1777217575459,208.0,9.989e-05,2]
[421180909,1777217575751,208.0,9.989e-05,2]
[421180910,1777217576043,208.0,9.989e-05,2]
[421180911,1777217576373,208.0,9.989e-05,2]
[421180912,1777217576636,208.0,9.989e-05,2]
[421180913,1777217576924,208.0,9.989e-05,2]
[421180914,1777217613497,150.085554,0.0003287,120]
[421180915,1777217662108,150.0,0.00032757,120]
[421180916,1777217699243,280.0,8.219e-05,2]
[421180917,1777217765423,172.0,0.0001255,2]
[421180918,1777217807382,1737.0,0.00032876,120]
[421180919,1777217821481,1500.0,0.0003287,120]
[421180921,1777217872561,280.0,8.219e-05,2]
[421180922,1777217893817,1000.0,0.00032877,120]
[421180923,1777217896964,1500.0,0.0003287,120]
[421180924,1777217899971,1500.0,0.0003287,120]
[421180925,1777217911172,1000.0,0.00032877,120]
[421180926,1777217920102,1500.0,0.0003287,120]
[421180927,1777217929896,1000.0,0.00032877,120]
[421180928,1777217930133,1500.0,0.0003287,120]
[421180929,1777217930622,1082.0,0.00032876,120]
[421180930,1777217931485,1500.0,0.0003287,120]
[421180931,1777217939537,1500.0,0.0003287,120]
[421180932,1777217945491,1000.0,0.00032877,120]
[421180933,1777217960630,1000.0,0.00032877,120]
[421180934,1777217964749,1500.0,0.0003287,120]
[421180935,1777217968586,1500.0,0.0003287,120]
[421180936,1777217976433,1000.0,0.00032877,120]
[421180937,1777217983513,1500.0,0.0003287,120]
[421180938,1777217993152,4317.09,0.00032877,120]
[421180939,1777217993567,1446.64171589,0.0003287,120]
[421180940,1777217995264,1000.0,0.00032877,120]
[421180941,1777218000712,150.0,0.00030884,120]
[421180942,1777218001063,150.0,0.00032769,120]
[421180943,1777218024621,1000.0,0.00032877,120]
[421180945,1777218041272,1000.0,0.00032877,120]
[421180946,1777218042172,1500.0,0.0003287,120]
[421180947,1777218062535,1000.0,0.00032877,120]
[421180948,1777218077727,150.0,0.00030962,120]
[421180949,1777218078108,150.0,0.00032851,120]
[421180950,1777218086271,1000.0,0.00032877,120]
[421180951,1777218102852,1000.0,0.00032877,120]
[421180953,1777218159668,150.0,0.00030804,120]
[421180954,1777218160269,150.0,0.00032684,120]
[421180955,1777218163030,280.0,8.219e-05,2]
[421180956,1777218186312,1000.0,0.00032877,120]
[421180957,1777218202986,1000.0,0.00032877,120]
[421180958,1777218220028,1086.0,0.00032877,120]
[421180959,1777218237472,150.0,0.00032058,120]
[421180961,1777218313575,150.0,0.00032038,120]
[421180962,1777218351761,400.0,0.0003,120]
[421180963,1777218358212,250.0,8.767e-05,2]
[421180969,1777218375907,280.0,8.219e-05,2]
[421180973,1777218461054,500.78027254,0.00032876,120]
[421180974,1777218528776,280.0,8.219e-05,2]
[421180975,1777218576402,1343.9,0.0003287,120]
[421180986,1777218631955,-250.0,0.00013,2]
[421180989,1777218631966,-251.0,0.00014899,2]
[421180991,1777218631976,-163.19988441,0.00014899,2]
[421180993,1777218631995,-405.06604582,0.00014899,2]
[421180994,1777218632007,-954.0,0.00014899,2]
[421180995,1777218632019,-977.73406977,0.00014899,2]
[421180996,1777218632028,-250.0,0.000149,2]
[421180997,1777218632038,-229.85152498,0.000149,2]
[421180998,1777218632048,-229.85152498,0.000149,2]
[421180999,1777218632058,-229.85152498,0.000149,2]
[421181000,1777218632069,-2500.0,0.00014988,2]
[421181001,1777218632078,-160.0,0.00015,2]
[421181002,1777218632088,-300.0,0.00015,2]
[421181003,1777218632098,-250.0,0.00015241,2]
[421181004,1777218632108,-300.0,0.00016388,2]
[421181005,1777218632118,-1200.0,0.00016388,2]
[421181006,1777218632127,-2624.26886413,0.00016389,2]
[421181007,1777218632137,-250.0,0.00016389,2]
[421181008,1777218632147,-2500.0,0.00016389,2]
[421181009,1777218632156,-300.0,0.00016519,2]
[421181010,1777218632166,-350.0,0.00017,2]
[421181011,1777218632176,-284.72151114,0.00017384,2]
[421181012,1777218632186,-150.0,0.00017384,2]
[421181014,1777218632199,-150.0,0.00017384,4]
[421181016,1777218632209,-150.0,0.00017384,2]
[421181018,1777218632219,-150.0,0.00017384,2]
[421181020,1777218632229,-150.0,0.00017384,2]
[421181022,1777218632238,-150.0,0.00017384,2]
[421181024,1777218632248,-150.0,0.00017384,2]
[421181026,1777218632257,-150.0,0.00017532,2]
[421181028,1777218632267,-150.0,0.00017681,2]
[421181030,1777218632276,-150.0,0.00017829,2]
[421181032,1777218632285,-162.25551732,0.00017875,2]
[421181034,1777218632295,-160.0,0.00017875,2]
[421181036,1777218632305,-150.0,0.00017978,2]
[421181038,1777218632315,-1306.69951294,0.00018,2]
[421181040,1777218632324,-1279.0,0.00018,2]
[421181043,1777218632334,-1500.0,0.000181,2]
[421181044,1777218632344,-150.0,0.00018126,2]
[421181046,1777218632355,-1306.69951294,0.000182,2]
[421181049,1777218632364,-150.0,0.00018275,2]
[421181051,1777218632374,-3000.0,0.000183,2]
[421181053,1777218632384,-850.0,0.000183,2]
[421181055,1777218632393,-150.0,0.00018349,4]
[421181057,1777218632402,-150.0,0.00018349,2]
[421181059,1777218632411,-1306.69951294,0.000184,2]
[421181061,1777218632421,-273.18,0.000184,2]
[421181063,1777218632430,-150.0,0.00018424,2]
[421181065,1777218632439,-1306.69951294,0.000185,2]
[421181067,1777218632449,-3000.0,0.000185,2]
[421181068,1777218632458,-150.0,0.00018572,2]
[421181070,1777218632468,-1306.69951294,0.000187,2]
[421181071,1777218632478,-3000.0,0.000187,2]
[421181072,1777218632487,-700.0,0.000187,6]
[421181073,1777218632497,-500.0,0.000187,2]
[421181074,1777218632506,-150.0,0.00018721,2]
[421181075,1777218632516,-1500.0,0.000188,6]
[421181076,1777218632525,-150.0,0.00018869,2]
[421181077,1777218632535,-2200.0,0.000189,6]
[421181078,1777218632544,-500.0,0.00018974,2]
[421181079,1777218632554,-150.06998132,0.00019,21]
[421181080,1777218632564,-400.0,0.00019,2]
[421181081,1777218632574,-150.0,0.00019018,2]
[421181082,1777218632583,-19771.66604142,0.00019114,2]
[421181083,1777218632593,-150.0,0.00019166,2]
[421181084,1777218632603,-2500.0,0.00019188,2]
[421181085,1777218632612,-200.0,0.00019202,2]
[421181086,1777218632622,-500.0,0.00019202,2]
[421181087,1777218632631,-151.0,0.00019202,2]
[421181088,1777218632641,-500.0,0.00019202,2]
[421181089,1777218632650,-151.0,0.00019202,2]
[421181090,1777218632660,-500.0,0.00019202,2]
[421181091,1777218632669,-151.0,0.00019202,2]
[421181092,1777218632678,-387.94217574,0.00019202,2]
[421181093,1777218632687,-151.0,0.00019202,2]
[421181094,1777218632698,-151.0,0.00019202,2]
[421181095,1777218632708,-151.0,0.00019202,2]
[421181096,1777218632717,-151.0,0.00019202,2]
[421181097,1777218632726,-151.0,0.00019202,2]
[421181098,1777218632736,-151.0,0.00019202,2]
[421181099,1777218632745,-151.0,0.00019202,2]
[421181100,1777218632755,-151.0,0.00019202,2]
[421181101,1777218632764,-151.0,0.00019202,2]
[421181102,1777218632773,-151.0,0.00019202,2]
[421181103,1777218632786,-500.0,0.00019202,2]
[421181104,1777218632796,-500.0,0.00019202,2]
[421181105,1777218632805,-500.0,0.00019202,2]
[421181106,1777218632814,-500.0,0.00019202,2]
[421181107,1777218632823,-500.0,0.00019202,2]
[421181108,1777218632832,-492.23450595,0.00019202,2]
[421181109,1777218632841,-391.16,0.00019204,3]
[421181110,1777218632850,-542.71015587,0.00019213,2]
[421181111,1777218632859,-193.17128722,0.00019213,2]
[421181112,1777218632869,-500.0,0.00019213,2]
[421181113,1777218632878,-500.0,0.00019213,2]
[421181114,1777218632887,-500.0,0.00019213,2]
[421181115,1777218632897,-246.59517377,0.00019213,2]
[421181116,1777218633249,-500.0,0.00019213,2]
[421181117,1777218633260,-500.0,0.00019213,2]
[421181118,1777218633270,-500.0,0.00019213,2]
[421181119,1777218633281,-500.0,0.00019213,2]
[421181120,1777218633291,-6786.3412,0.00019214,2]
[421181121,1777218633301,-6580.354,0.00019214,2]
[421181122,1777218633310,-1117.13553336,0.00019214,2]
[421181123,1777218633320,-5000.0,0.00019215,2]
[421181124,1777218633330,-377.41,0.00019223,2]
[421181125,1777218633339,-183.1434981,0.00019273,2]
[421181126,1777218633348,-192.5274121,0.00019273,2]
[421181127,1777218633357,-44078.0,0.00019288,2]
[421181128,1777218633366,-335.13294233,0.00019305,2]
[421181129,1777218633375,-521.79,0.00019312,2]
[421181130,1777218633384,-500.0,0.00019312,2]
[421181131,1777218633393,-500.0,0.00019312,2]
[421181132,1777218633402,-1075.57,0.00019312,2]
[421181133,1777218633411,-500.0,0.00019312,2]
[421181134,1777218633420,-1003.84,0.00019312,2]
[421181135,1777218633429,-500.0,0.00019312,2]
[421181136,1777218633439,-286.65485468,0.00019313,2]
[421181137,1777218633449,-1077.85484221,0.00019313,5]
[421181138,1777218633459,-1066.89,0.00019313,2]
[421181139,1777218633468,-204.852192,0.00019313,2]
[421181140,1777218633477,-204.852192,0.00019313,2]
[421181141,1777218633486,-151.0,0.00019313,2]
[421181142,1777218633496,-204.852192,0.00019313,2]
[421181143,1777218633507,-204.852192,0.00019313,2]
[421181144,1777218633516,-151.0,0.00019313,2]
[421181145,1777218633525,-230.745701,0.00019313,2]
[421181146,1777218633534,-306.779676,0.00019313,2]
[421181147,1777218633543,-306.779676,0.00019313,2]
[421181148,1777218633553,-306.779676,0.00019313,2]
[421181149,1777218633562,-639.926415,0.00019313,2]
[421181150,1777218633572,-306.779676,0.00019313,2]
[421181151,1777218633582,-639.926415,0.00019313,2]
[421181152,1777218633591,-639.926415,0.00019313,2]
[421181153,1777218633600,-639.926415,0.00019313,2]
[421181154,1777218633609,-151.0,0.00019313,2]
[421181155,1777218633619,-151.0,0.00019313,2]
[421181156,1777218633628,-151.0,0.00019313,2]
[421181157,1777218633637,-151.0,0.00019313,2]
[421181158,1777218633646,-287.124826,0.00019313,2]
[421181159,1777218633655,-287.124826,0.00019313,2]
[421181160,1777218633664,-287.124826,0.00019313,2]
[421181161,1777218633673,-151.0,0.00019313,2]
[421181162,1777218633682,-287.124826,0.00019313,2]
[421181163,1777218633691,-151.0,0.00019313,2]
[421181164,1777218633700,-261.222742,0.00019313,2]
[421181165,1777218633710,-261.222742,0.00019313,2]
[421181166,1777218633719,-261.222742,0.00019313,2]
[421181167,1777218633728,-261.222742,0.00019313,2]
[421181168,1777218633737,-151.0,0.00019313,2]
[421181169,1777218633746,-455.250315,0.00019313,2]
[421181170,1777218633755,-455.250315,0.00019313,2]
[421181171,1777218633764,-1400.53854285,0.00019313,2]
[421181172,1777218633774,-1400.53854285,0.00019313,2]
[421181173,1777218633783,-1400.53854285,0.00019313,2]
[421181174,1777218633792,-1400.53854285,0.00019313,2]
[421181175,1777218633801,-1400.53854285,0.00019313,2]
[421181176,1777218633810,-1400.53854285,0.00019313,2]
[421181177,1777218633819,-1400.53854285,0.00019313,2]
[421181178,1777218633829,-1400.53854285,0.00019313,2]
[421181179,1777218633839,-1400.53854285,0.00019313,2]
[421181180,1777218633849,-1400.53854285,0.00019313,2]
[421181181,1777218633859,-1400.53854285,0.00019313,2]
[421181182,1777218633868,-1400.53854285,0.00019313,2]
[421181183,1777218633878,-1400.53854285,0.00019313,2]
[421181184,1777218633887,-1400.53854285,0.00019313,2]
[421181185,1777218633896,-1400.53854285,0.00019313,2]
[421181186,1777218633906,-1400.53854285,0.00019313,2]
[421181187,1777218633915,-1400.53854285,0.00019313,2]
[421181188,1777218633925,-1400.53854285,0.00019313,2]
[421181189,1777218633934,-1400.53854285,0.00019313,2]
[421181190,1777218633943,-1400.53854285,0.00019313,2]
[421181191,1777218633955,-1400.53854285,0.00019313,2]
[421181192,1777218633964,-1400.53854285,0.00019313,2]
[421181193,1777218633973,-1400.53854285,0.00019313,2]
[421181194,1777218633982,-1400.53854285,0.00019313,2]
[421181195,1777218633992,-1400.53854285,0.00019313,2]
[421181196,1777218634001,-1400.53854285,0.00019313,2]
[421181197,1777218634011,-1400.53854285,0.00019313,2]
[421181198,1777218634021,-1400.53854285,0.00019313,2]
[421181199,1777218634032,-1400.53854285,0.00019313,2]
[421181200,1777218634042,-1400.53854285,0.00019313,2]
[421181201,1777218634053,-993.96145445,0.00019313,2]
[421181202,1777218634069,-406.5770884,0.00019313,2]
[421181203,1777218634079,-1400.53854285,0.00019313,2]
[421181204,1777218634091,-1400.53854285,0.00019313,2]
[421181205,1777218634102,-1400.53854285,0.00019313,2]
[421181206,1777218634112,-1400.53854285,0.00019313,2]
[421181207,1777218634121,-1400.53854285,0.00019313,2]
[421181208,1777218634131,-1400.53854285,0.00019313,2]
[421181209,1777218634139,-1400.53854285,0.00019313,2]
[421181210,1777218634148,-1400.53854285,0.00019313,2]
[421181211,1777218634158,-1400.53854285,0.00019313,2]
[421181212,1777218634167,-1400.53854285,0.00019313,2]
[421181213,1777218634176,-442.0532952,0.00019313,2]
[421181214,1777218634203,-958.48524765,0.00019313,2]
[421181215,1777218634213,-368.04183279,0.00019313,2]
[421181221,1777218638117,-500.0,0.00019312,2]
[421181222,1777218638126,-448.728,0.00019312,2]
[421181391,1777218640166,-51.272,0.00019312,2]
[421181393,1777218640176,-229.68607118,0.00019312,2]
[421181395,1777218640186,-500.0,0.00019312,2]
[421181397,1777218640196,-500.0,0.00019312,2]
[421181399,1777218640206,-500.0,0.00019312,2]
[421181401,1777218640215,-500.0,0.00019312,2]
[421181403,1777218640224,-500.0,0.00019312,2]
[421181405,1777218640233,-455.250315,0.00019313,2]
[421181407,1777218640243,-455.250315,0.00019313,2]
[421181409,1777218640252,-855.54129882,0.00019314,5]
[421181414,1777218640291,-222.31354338,0.00019314,5]
[421181416,1777218640300,-391.61560074,0.00019314,2]
[421181426,1777218640382,-108.38439926,0.00019314,2]
[421181428,1777218640392,-500.0,0.00019314,2]
[421181430,1777218640401,-500.0,0.00019314,2]
[421181432,1777218640411,-500.0,0.00019314,2]
[421181434,1777218640421,-500.0,0.00019314,2]
[421181436,1777218640430,-500.0,0.00019314,2]
[421181438,1777218640440,-500.0,0.00019314,2]
[421181440,1777218640450,-500.0,0.00019314,2]
[421181442,1777218640460,-500.0,0.00019314,2]
[421181444,1777218640469,-500.0,0.00019314,2]
[421181446,1777218640479,-500.0,0.00019314,2]
[421181448,1777218640489,-500.0,0.00019314,2]
[421181450,1777218640498,-500.0,0.00019314,2]
[421181452,1777218640508,-500.0,0.00019314,2]
[421181454,1777218640517,-111.61560074,0.00019314,2]
[421181690,1777218643341,-500.0,0.00019312,2]
[421181691,1777218643354,-369.61801738,0.00019314,2]
[421181693,1777218643476,-19.86028716,0.00019314,2]
[421181694,1777218643489,-150.0,0.00019314,2]
[421181695,1777218643502,-145.90909966,0.00019314,2]
[421181696,1777218643538,-375.88090034,0.00019314,2]
[421181697,1777218643552,-521.79,0.00019314,2]
[421181698,1777218643565,-521.79,0.00019314,2]
[421181699,1777218643577,-521.79,0.00019314,2]
[421181700,1777218643590,-521.79,0.00019314,2]
[421181701,1777218643603,-521.79,0.00019314,2]
[421181702,1777218643616,-521.79,0.00019314,2]
[421181703,1777218643629,-521.79,0.00019314,2]
[421181704,1777218643641,-500.0,0.00019314,2]
[421181705,1777218643660,-500.0,0.00019314,2]
[421181706,1777218643675,-436.52,0.00019314,2]
[421181707,1777218643689,-500.0,0.00019314,2]
[421181708,1777218643704,-500.0,0.00019314,2]
[421181709,1777218643719,-500.0,0.00019314,2]
[421181710,1777218643733,-500.0,0.00019314,2]
[421181711,1777218643746,-500.0,0.00019314,2]
[421181712,1777218643760,-500.0,0.00019314,2]
[421181713,1777218643776,-500.0,0.00019314,2]
[421181714,1777218643790,-500.0,0.00019314,2]
[421181715,1777218643803,-500.0,0.00019314,2]
[421181716,1777218643819,-500.0,0.00019314,2]
[421181717,1777218643833,-500.0,0.00019314,2]
[421181718,1777218643846,-500.0,0.00019314,2]
[421181719,1777218643860,-500.0,0.00019314,2]
[421181720,1777218643874,-500.0,0.00019314,2]
[421181721,1777218643889,-500.0,0.00019314,2]
[421181722,1777218643903,-500.0,0.00019314,2]
[421181723,1777218643916,-500.0,0.00019314,2]
[421181724,1777218643929,-500.0,0.00019314,2]
[421181725,1777218643941,-500.0,0.00019314,2]
[421181726,1777218643954,-500.0,0.00019314,2]
[421181727,1777218643966,-500.0,0.00019314,2]
[421181728,1777218643979,-500.0,0.00019314,2]
[421181729,1777218643997,-500.0,0.00019314,2]
[421181730,1777218644009,-500.0,0.00019314,2]
[421181731,1777218644027,-500.0,0.00019314,2]
[421181732,1777218644040,-500.0,0.00019314,2]
[421181733,1777218644053,-1075.57,0.00019314,2]
[421181734,1777218644066,-1075.57,0.00019314,2]
[421181735,1777218644079,-1075.57,0.00019314,2]
[421181736,1777218644093,-1075.57,0.00019314,2]
[421181737,1777218644105,-1075.57,0.00019314,2]
[421181738,1777218644118,-1075.57,0.00019314,2]
[421181739,1777218644131,-1075.57,0.00019314,2]
[421181740,1777218644143,-1075.57,0.00019314,2]
[421181741,1777218644156,-500.0,0.00019314,2]
[421181742,1777218644168,-500.0,0.00019314,2]
[421181743,1777218644181,-707.51,0.00019314,2]
[421181744,1777218644194,-500.0,0.00019314,2]
[421181745,1777218644208,-707.51,0.00019314,2]
[421181746,1777218644221,-500.0,0.00019314,2]
[421181747,1777218644233,-707.51,0.00019314,2]
[421181748,1777218644245,-707.51,0.00019314,2]
[421181749,1777218644258,-707.51,0.00019314,2]
[421181750,1777218644271,-707.51,0.00019314,2]
[421181751,1777218644284,-707.51,0.00019314,2]
[421181752,1777218644297,-707.51,0.00019314,2]
[421181753,1777218644310,-707.51,0.00019314,2]
[421181754,1777218644323,-1003.84,0.00019314,2]
[421181755,1777218644335,-1003.84,0.00019314,2]
[421181756,1777218644348,-1003.84,0.00019314,2]
[421181757,1777218644360,-1003.84,0.00019314,2]
[421181758,1777218644372,-1003.84,0.00019314,2]
[421181759,1777218644384,-1003.84,0.00019314,2]
[421181760,1777218644396,-1003.84,0.00019314,2]
[421181761,1777218644413,-1003.84,0.00019314,2]
[421181762,1777218644427,-261.222742,0.00019314,2]
[421181763,1777218644443,-261.222742,0.00019314,2]
[421181764,1777218644456,-261.222742,0.00019314,2]
[421181765,1777218644469,-261.222742,0.00019314,2]
[421181766,1777218644482,-500.0,0.00019314,2]
[421181767,1777218644494,-500.0,0.00019314,2]
[421181768,1777218644507,-500.0,0.00019314,2]
[421181769,1777218644520,-500.0,0.00019314,2]
[421181770,1777218644533,-501.59577219,0.00019314,2]
[421181771,1777218644545,-455.250315,0.00019314,2]
[421181772,1777218644558,-455.250315,0.00019314,2]
[421181774,1777218644571,-455.250315,0.00019314,2]
[421181775,1777218645886,-455.250315,0.00019314,2]
[421181776,1777218645927,-500.0,0.00019314,2]
[421181777,1777218645969,-500.0,0.00019314,2]
[421181778,1777218645979,-500.0,0.00019314,2]
[421181779,1777218645989,-500.0,0.00019314,2]
[421181780,1777218645999,-500.0,0.00019314,2]
[421181781,1777218646009,-500.0,0.00019314,2]
[421181782,1777218646019,-500.0,0.00019314,2]
[421181783,1777218646028,-500.0,0.00019314,2]
[421181784,1777218646038,-295.90885131,0.00019314,2]
[421181785,1777218646054,-151.0,0.00019315,2]
[421181786,1777218646064,-151.0,0.00019315,2]
[421181787,1777218646074,-151.0,0.00019315,2]
[421181788,1777218646083,-151.0,0.00019315,2]
[421181789,1777218646093,-151.0,0.00019315,2]
[421181790,1777218646103,-151.0,0.00019315,2]
[421181791,1777218646113,-204.852192,0.00019315,2]
[421181792,1777218646123,-204.852192,0.00019315,2]
[421181793,1777218646134,-204.852192,0.00019315,2]
[421181794,1777218646145,-239.788149,0.00019315,2]
[421181795,1777218646155,-204.852192,0.00019315,2]
[421181796,1777218646166,-204.852192,0.00019315,2]
[421181797,1777218646176,-204.852192,0.00019315,2]
[421181798,1777218646186,-204.852192,0.00019315,2]
[421181799,1777218646197,-204.852192,0.00019315,2]
[421181800,1777218646207,-151.0,0.00019315,2]
[421181801,1777218646218,-306.779676,0.00019315,2]
[421181802,1777218646228,-306.779676,0.00019315,2]
[421181803,1777218646239,-306.779676,0.00019315,2]
[421181804,1777218646248,-306.779676,0.00019315,2]
[421181805,1777218646259,-306.779676,0.00019315,2]
[421181806,1777218646269,-639.926415,0.00019315,2]
[421181808,1777218646280,-306.779676,0.00019315,2]
[421181809,1777218646290,-639.926415,0.00019315,2]
[421181810,1777218646300,-306.779676,0.00019315,2]
[421181811,1777218646310,-639.926415,0.00019315,2]
[421181812,1777218646320,-306.779676,0.00019315,2]
[421181813,1777218646330,-639.926415,0.00019315,2]
[421181814,1777218646341,-639.926415,0.00019315,2]
[421181815,1777218646351,-639.926415,0.00019315,2]
[421181816,1777218646363,-639.926415,0.00019315,2]
[421181817,1777218646373,-639.926415,0.00019315,2]
[421181818,1777218646384,-151.0,0.00019315,2]
[421181819,1777218646394,-151.0,0.00019315,2]
[421181820,1777218646405,-151.0,0.00019315,2]
[421181821,1777218646416,-151.0,0.00019315,2]
[421181822,1777218646428,-151.0,0.00019315,2]
[421181823,1777218646443,-151.0,0.00019315,2]
[421181824,1777218646455,-151.0,0.00019315,2]
[421181825,1777218646465,-151.0,0.00019315,2]
[421181826,1777218646475,-287.124826,0.00019315,2]
[421181827,1777218646486,-287.124826,0.00019315,2]
[421181828,1777218646498,-287.124826,0.00019315,2]
[421181829,1777218646508,-287.124826,0.00019315,2]
[421181830,1777218646519,-287.124826,0.00019315,2]
[421181831,1777218646528,-287.124826,0.00019315,2]
[421181832,1777218646538,-151.0,0.00019315,2]
[421181833,1777218646548,-151.0,0.00019315,2]
[421181835,1777218646559,-287.124826,0.00019315,2]
[421181836,1777218646570,-151.0,0.00019315,2]
[421181837,1777218646582,-287.124826,0.00019315,2]
[421181838,1777218646592,-151.0,0.00019315,2]
[421181839,1777218646603,-151.0,0.00019315,2]
[421181840,1777218646614,-240.489104,0.00019315,2]
[421181841,1777218646624,-261.222742,0.00019315,2]
[421181842,1777218646634,-261.222742,0.00019315,2]
[421181843,1777218646645,-261.222742,0.00019315,2]
[421181844,1777218646655,-261.222742,0.00019315,2]
[421181845,1777218646667,-261.222742,0.00019315,2]
[421181846,1777218646677,-261.222742,0.00019315,2]
[421181847,1777218646689,-261.222742,0.00019315,2]
[421181848,1777218646699,-261.222742,0.00019315,2]
[421181849,1777218646708,-455.250315,0.00019315,2]
[421181850,1777218646719,-455.250315,0.00019315,2]
[421181851,1777218646729,-455.250315,0.00019315,2]
[421181852,1777218646740,-455.250315,0.00019315,2]
[421181853,1777218646751,-455.250315,0.00019315,2]
[421181854,1777218646761,-455.250315,0.00019315,2]
[421181855,1777218646773,-455.250315,0.00019315,2]
[421181856,1777218646783,-455.250315,0.00019315,2]
[421181857,1777218646793,-150.0,0.00019315,4]
[421181858,1777218646804,-150.0,0.00019315,4]
[421181859,1777218646814,-236.14841098,0.00019315,4]
[421181860,1777218646824,-521055.5184,0.00019315,2]
[421181861,1777218646841,-266850.7385232,0.00019315,2]
[421181862,1777218646884,-1096.8488735,0.00019315,2]
[421181863,1777218646897,-1897.46000004,0.00019315,2]
[421181864,1777218646909,-2684.3835031,0.00019315,2]
[421181865,1777218647455,-5000.0,0.00019215,2]
[421181866,1777218647466,-5293.86191905,0.00019315,2]
[421181867,1777218647512,-261.49835,0.00019315,2]
[421181870,1777218771021,280.0,8.219e-05,2]